bitfinex/quotes_ETHUSD_20260216
["timestamp","ask_amount","ask_price","bid_price","bid_amount"]
[1771244775452,4.048884,1988.6,1986.8,0.907]
[1771244775655,19.749071,1988.4,1986.8,0.907]
[1771244775954,1.72966927,1988.4,1986.8,0.907]
[1771244776125,0.47237698,1988.3,1986.8,0.907]
[1771244777454,1.72952492,1988.7,1986.9,0.46883056]
[1771244779142,1.25714794,1988.7,1987.0,0.57123056]
[1771244779728,2.16405254,1988.8,1987.0,0.57123056]
[1771244780131,2.16406453,1988.8,1987.0,0.57123056]
[1771244780645,2.16406453,1988.8,1987.0,0.46883056]
[1771244780849,0.47237698,1988.7,1987.0,0.46883056]
[1771244781026,2.16406453,1988.8,1987.1,0.1024]
[1771244781027,0.907,1988.8,1987.1,0.1024]
[1771244781224,0.47237698,1989.3,1987.4,0.46883056]
[1771244781429,0.47237698,1989.3,1987.6,0.46883056]
[1771244781757,0.9081,1989.7,1987.8,0.46883056]
[1771244781758,1.72891095,1989.6,1987.8,0.46883056]
[1771244782241,1.7289156,1989.6,1987.8,0.46883056]
[1771244782957,1.7289156,1989.6,1988.0,0.46883056]
[1771244784343,1.72891395,1989.6,1988.0,0.46883056]
[1771244785032,0.47237698,1989.5,1987.7,0.907]
[1771244785453,1.25653697,1989.6,1987.7,0.907]
[1771244785454,1.25653697,1989.6,1987.8,0.46883056]
[1771244785654,1.25653697,1989.6,1988.0,0.46883056]
[1771244787175,0.0011,1989.7,1988.5,0.46883056]
[1771244787473,0.47237698,1990.6,1988.7,0.46883056]
[1771244787698,0.47237698,1991.0,1989.6,0.02371899]
[1771244787857,1.72783823,1991.3,1989.7,0.57]
[1771244788032,1.25558736,1991.1,1989.7,0.57]
[1771244788239,1.50541696,1992.9,1989.8,0.46883056]
[1771244788545,0.47237698,1992.3,1990.6,8.92090182]
[1771244788734,0.08,1992.6,1990.8,0.46883056]
[1771244788940,0.47237698,1993.4,1991.4,0.46883056]
[1771244789133,0.47237698,1993.2,1991.6,0.18685624]
[1771244789339,0.47237698,1993.2,1991.7,0.906]
[1771244789551,5.14701362,1993.7,1991.9,0.46883056]
[1771244789552,1.38516141,1993.7,1991.9,0.46883056]
[1771244789869,0.47237698,1993.6,1991.6,8.92090182]
[1771244790082,1.38514473,1993.7,1992.0,0.576]
[1771244790083,1.25420157,1993.3,1992.0,0.576]
[1771244790380,1.25420157,1993.3,1991.6,0.577]
[1771244790687,0.47237698,1993.1,1991.5,0.67882909]
[1771244790837,0.47237698,1992.9,1991.0,0.6556868]
[1771244791034,0.47237698,1992.7,1991.0,0.46883056]
[1771244791244,9.3932788,1993.1,1991.1,3.3405351]
[1771244791450,0.47237698,1993.1,1991.2,5.63055444]
[1771244791689,0.47237698,1993.1,1991.3,3.9205351]
[1771244791880,30.47237698,1992.7,1990.9,2.29001934]
[1771244792082,30.47237698,1992.7,1989.8,7.45393893]
[1771244792083,0.47237698,1991.8,1990.1,2.29001934]
[1771244792282,0.47237698,1991.8,1989.9,0.581]
[1771244792283,17.460103,1991.7,1989.9,0.581]
[1771244792515,0.1024,1991.4,1989.8,0.46883056]
[1771244792674,1.25508308,1991.9,1989.9,3.34738775]
[1771244792675,0.57477698,1991.7,1989.9,3.34738775]
[1771244792889,0.57477698,1991.7,1989.7,2.29001934]
[1771244792890,0.57477698,1991.7,1990.0,2.89462636]
[1771244793080,0.57477698,1991.7,1989.7,2.7588499]
[1771244793285,0.47237698,1991.7,1989.9,0.46883056]
[1771244793513,0.47237698,1991.7,1990.0,0.45297913]
[1771244793724,1.72683028,1992.9,1990.4,0.46883056]
[1771244794027,1.72683028,1992.9,1990.5,3.79667334]
[1771244794028,6.42375998,1992.5,1990.5,3.79667334]
[1771244794188,0.57477698,1992.2,1990.6,2.89731573]
[1771244794371,0.57477698,1992.2,1989.9,3.78201934]
[1771244794372,0.47237698,1991.8,1989.9,3.78201934]
[1771244794576,1.94837698,1991.7,1990.0,2.8961452]
[1771244794811,0.47237698,1992.2,1990.2,0.46883056]
[1771244794976,3.0268,1992.1,1990.3,2.8961452]
[1771244795172,2.31914,1992.1,1990.4,2.8961452]
[1771244795515,0.47237698,1992.2,1990.5,2.8961452]
[1771244795799,0.47237698,1992.2,1990.6,2.8961452]
[1771244796000,0.47237698,1992.2,1990.2,2.7588499]
[1771244796184,1.25495708,1992.1,1990.3,3.34154452]
[1771244796381,1.25495708,1992.1,1990.4,3.35843058]
[1771244796571,9.10775806,1992.8,1990.2,2.29001934]
[1771244796572,0.0011,1993.0,1991.7,0.46883056]
[1771244796771,0.1311881,1993.7,1992.2,0.46883056]
[1771244796975,0.1311881,1993.7,1992.6,8.92090182]
[1771244797171,0.1311881,1993.7,1992.7,0.592]
[1771244797376,1.38514852,1993.7,1992.7,0.592]
[1771244797599,0.00183099,1994.8,1992.8,0.46883056]
[1771244797814,0.00183099,1994.8,1993.1,0.46883056]
[1771244798037,0.00183099,1994.8,1993.5,8.92090182]
[1771244798315,1.25212861,1996.6,1994.1,0.46883056]
[1771244798535,0.47237698,1996.4,1994.3,0.46883056]
[1771244798806,0.1311881,1995.9,1994.4,0.593]
[1771244799179,0.1311881,1995.8,1994.4,0.593]
[1771244799402,0.1311881,1995.9,1994.4,0.593]
[1771244799608,0.1311881,1995.9,1994.7,0.46883056]
[1771244799817,0.1311881,1995.9,1994.1,0.1024]
[1771244799818,0.1311881,1995.8,1994.1,0.46883056]
[1771244800025,0.47237698,1995.8,1994.1,0.595]
[1771244800174,0.47237698,1995.8,1993.6,0.46883056]
[1771244800175,0.57477698,1995.6,1993.1,0.46883056]
[1771244800375,0.57477698,1995.4,1993.1,0.46883056]
[1771244800581,0.1024,1994.6,1992.9,0.597]
[1771244800876,0.47237698,1994.4,1992.7,0.905]
[1771244801124,0.1311881,1994.3,1992.7,0.905]
[1771244801598,0.1311881,1994.2,1992.8,9.38973238]
[1771244801775,0.1311881,1994.8,1992.8,0.46883056]
[1771244801980,0.1311881,1994.8,1993.1,8.92090182]
[1771244802208,1.38454911,1994.7,1993.2,0.599]
[1771244802408,0.47237698,1994.5,1991.9,0.905]
[1771244802608,6.33432,1994.2,1992.1,0.46883056]
[1771244802812,0.47237698,1994.3,1992.1,0.46883056]
[1771244803119,0.1311881,1994.2,1992.4,0.46883056]
[1771244803281,0.1311881,1994.6,1992.8,0.46883056]
[1771244803628,0.1311881,1994.5,1992.9,0.6]
[1771244803780,0.1311881,1994.6,1992.9,0.6]
[1771244803986,0.1311881,1994.6,1992.9,0.59816901]
[1771244804303,0.1311881,1994.5,1992.9,1.07026787]
[1771244804619,1.38463977,1994.5,1992.9,0.59816901]
[1771244804922,0.1311881,1994.4,1992.9,1.07026787]
[1771244805222,1.508,1995.1,1992.9,1.07026787]
[1771244805223,0.1311881,1994.9,1993.2,0.47209886]
[1771244805403,0.1311881,1995.3,1993.5,0.57449886]
[1771244805729,0.1311881,1995.6,1993.5,0.57449886]
[1771244806419,1.38400694,1995.5,1993.5,0.47209886]
[1771244806588,8.709386,1995.3,1993.5,0.47209886]
[1771244806779,7.50218681,1995.1,1993.0,0.47209886]
[1771244806981,5.53076,1995.0,1993.0,0.47209886]
[1771244807177,5.53076,1995.0,1993.2,8.86284771]
[1771244807178,0.1311881,1995.0,1993.2,8.86284771]
[1771244807376,0.1311881,1995.0,1993.8,0.45299668]
[1771244807697,0.00153886,1996.0,1994.2,0.45299668]
[1771244807915,0.00153886,1996.0,1994.1,9.04970395]
[1771244807916,0.1311881,1995.9,1994.7,0.45299668]
[1771244808218,0.1311881,1995.9,1994.8,1.509]
[1771244808420,0.1311881,1995.9,1994.2,1.05799668]
[1771244808421,1.38376469,1995.9,1994.2,1.05799668]
[1771244808579,0.45197519,1995.7,1993.8,0.904]
[1771244808912,10.429687,1995.4,1993.8,0.901]
[1771244809114,0.45197519,1995.5,1993.8,0.901]
[1771244809421,7.725135,1995.3,1993.8,0.901]
[1771244809715,6.258735,1995.3,1993.8,0.901]
[1771244810013,0.45197519,1995.1,1992.9,1.51]
[1771244810224,0.904,1995.0,1993.0,0.45299668]
[1771244810385,1.25316202,1995.0,1993.0,0.45299668]
[1771244810580,1.25316202,1995.0,1993.4,0.45299668]
[1771244810581,0.1311881,1995.0,1993.4,0.45299668]
[1771244810928,0.1311881,1995.0,1993.7,0.45299668]
[1771244811282,1.38432308,1995.0,1993.7,0.45299668]
[1771244811486,1.38432308,1995.0,1993.3,0.607]
[1771244811958,0.1311881,1995.0,1993.4,0.45299668]
[1771244812157,0.1311881,1995.0,1993.8,0.45299668]
[1771244812462,0.1311881,1995.0,1993.8,1.35699668]
[1771244812624,0.1311881,1995.0,1993.9,0.45299668]
[1771244812820,2.15673423,1995.7,1993.9,0.45299668]
[1771244813019,0.1311881,1995.6,1993.9,0.45299668]
[1771244813379,0.58316329,1995.6,1993.8,0.904]
[1771244813730,0.58316329,1995.6,1993.9,0.45299668]
[1771244813731,0.1311881,1995.6,1993.9,0.45299668]
[1771244813995,0.1311881,1995.6,1994.4,0.45299668]
[1771244814127,0.00153886,1996.0,1994.7,9.31584439]
[1771244814339,0.45197519,1997.1,1994.9,0.45299668]
[1771244814540,1.26758476,1996.7,1994.9,0.45299668]
[1771244814744,0.0155097,1996.7,1994.9,0.45299668]
[1771244814945,1.26758163,1996.7,1994.9,0.45299668]
[1771244815190,0.0155097,1996.7,1994.9,0.45299668]
[1771244815470,1.0137101,1997.2,1995.8,0.45299668]
[1771244815671,1.0137101,1997.2,1995.9,0.608]
[1771244815871,6.02088603,1997.2,1995.9,1.06099668]
[1771244816078,1.25342631,1997.0,1995.9,0.608]
[1771244816247,0.00153886,1997.0,1995.8,0.904]
[1771244818894,19.96115519,1996.9,1995.2,0.61]
[1771244819179,0.45197519,1996.8,1994.8,0.903]
[1771244819339,1.527,1996.7,1994.8,0.903]
[1771244819541,0.45197519,1996.3,1994.5,0.61]
[1771244819982,0.45197519,1996.1,1993.9,2.28168776]
[1771244820195,0.45197519,1995.9,1993.8,1.514]
[1771244820399,0.45197519,1995.5,1993.8,1.514]
[1771244820695,1.70448766,1996.0,1993.8,1.514]
[1771244820894,1.25217383,1996.6,1994.4,0.45299668]
[1771244821074,1.25217383,1996.6,1994.4,5.59992559]
[1771244821374,0.45197519,1996.3,1994.5,2.86524115]
[1771244821573,1.25217383,1996.6,1994.6,0.615]
[1771244821784,1.25217383,1996.6,1994.7,2.86354996]
[1771244821989,1.2519405,1996.9,1994.9,0.45299668]
[1771244822188,0.00153886,1997.0,1995.4,0.45299668]
[1771244822388,0.1311881,1997.6,1996.1,0.45299668]
[1771244822591,0.1311881,1997.6,1996.5,0.45299668]
[1771244822796,0.00153886,1998.0,1996.7,0.45299668]
[1771244822963,0.00153886,1998.0,1996.8,0.44627718]
[1771244823156,1.25279072,1998.0,1996.6,0.618]
[1771244823358,1.25279072,1998.0,1996.7,2.86065433]
[1771244823359,1.25283761,1998.0,1996.7,2.86065433]
[1771244823557,3.05479,1997.9,1995.8,2.90168776]
[1771244823793,8.001883,1997.8,1995.8,0.62]
[1771244823977,0.45197519,1997.9,1995.8,0.62]
[1771244824286,23.36669145,1997.5,1995.8,0.62]
[1771244824488,1.25156445,1997.5,1995.8,0.62]
[1771244824891,5.00625782,1997.8,1995.8,0.62]
[1771244824892,2.15437651,1997.8,1995.8,0.62]
[1771244825057,2.15437651,1997.8,1995.9,2.86806442]
[1771244825261,2.15437651,1997.8,1996.0,2.86806442]
[1771244825590,0.45197519,1997.6,1995.8,0.62]
[1771244825790,1.25137651,1997.8,1995.9,2.87375639]
[1771244825992,1.25137651,1997.8,1995.8,0.62]
[1771244825993,0.00153886,1998.0,1996.3,2.28168776]
[1771244826154,0.00153886,1998.0,1996.6,2.28168776]
[1771244826358,0.00153886,1998.0,1996.7,0.4494502]
[1771244826560,0.00153886,1998.0,1996.9,2.28168776]
[1771244826778,0.00153886,1998.0,1996.9,2.87375639]
[1771244826992,0.00153886,1998.0,1997.0,2.87135639]
[1771244827306,0.00153886,1998.0,1996.7,2.28168776]
[1771244827457,0.00153886,1998.0,1996.9,2.28168776]
[1771244827659,0.00153886,1998.0,1996.8,3.8729497]
[1771244827660,0.00153886,1998.0,1997.0,2.73080205]
[1771244827963,0.00153886,1998.0,1997.2,2.28168776]
[1771244828163,0.00153886,1998.0,1997.3,0.623]
[1771244828560,0.00153886,1998.0,1996.9,2.28168776]
[1771244828751,0.00153886,1998.0,1996.7,2.90468776]
[1771244828985,0.00153886,1998.0,1996.7,0.623]
[1771244829365,0.00153886,1998.0,1996.9,2.28168776]
[1771244829559,0.00153886,1998.0,1996.8,2.28168776]
[1771244829855,0.00153886,1998.0,1996.7,0.623]
[1771244830084,0.00153886,1998.0,1996.7,2.90468776]
[1771244830286,0.00153886,1998.0,1996.9,0.44775344]
[1771244830499,0.00153886,1998.0,1997.0,0.44775344]
[1771244830785,0.00153886,1998.0,1996.9,2.28168776]
[1771244830985,0.00153886,1998.0,1997.0,2.72940106]
[1771244831152,0.00153886,1998.0,1997.1,0.4477133]
[1771244831353,1.26076681,1999.0,1997.3,2.28168776]
[1771244831589,1.26076681,1999.0,1997.4,1.07158774]
[1771244831904,1.26076681,1999.0,1997.4,1.527]
[1771244832256,0.45197519,1998.9,1997.0,2.28168776]
[1771244832501,0.45197519,1998.9,1995.9,2.28168776]
[1771244832502,15.47235519,1998.1,1995.9,2.28168776]
[1771244832705,1.35315045,1998.8,1995.7,0.902]
[1771244832706,23.854143,1997.5,1995.7,0.902]
[1771244832910,0.45197519,1997.0,1995.7,0.902]
[1771244833123,10.494453,1996.7,1994.6,5.29068776]
[1771244833269,9.38579019,1996.6,1994.7,0.627]
[1771244833616,9.76484771,1996.7,1994.7,0.627]
[1771244833617,6.728276,1996.1,1994.7,0.627]
[1771244833905,0.49245289,1995.7,1994.2,0.627]
[1771244834206,0.1024,1996.4,1993.6,2.28168776]
[1771244834207,1.39445289,1996.5,1994.1,8.86284771]
[1771244834386,1.39445289,1996.5,1994.4,2.74191232]
[1771244834387,2.15423924,1996.5,1994.4,2.74191232]
[1771244834568,2.15423924,1996.5,1994.6,2.28168776]
[1771244834771,2.15423924,1996.5,1994.7,1.98111372]
[1771244834992,2.15423924,1996.5,1994.7,1.531]
[1771244834993,0.49245289,1996.4,1994.7,1.531]
[1771244835201,0.49245289,1996.4,1994.9,0.001]
[1771244835715,2.15423924,1996.5,1994.9,0.001]
[1771244835865,5.00781003,1996.9,1995.0,2.73181418]
[1771244836201,5.00781003,1996.9,1995.1,2.73181418]
[1771244836411,5.00781003,1996.9,1995.2,0.63]
[1771244836575,12.092654,1996.8,1995.2,0.63]
[1771244836821,0.49245289,1996.7,1995.2,0.63]
[1771244837160,17.37193089,1996.4,1994.9,0.001]
[1771244837323,0.49245289,1996.2,1994.9,0.001]
[1771244837822,0.1024,1996.7,1994.9,0.001]
[1771244837823,2.50575,1996.7,1994.9,0.001]
[1771244838148,1.3543405,1997.0,1995.0,0.45052736]
[1771244838149,1.2519405,1997.0,1995.0,0.45052736]
[1771244838351,0.49245289,1997.0,1995.1,2.73221512]
[1771244838551,11.548392,1996.8,1994.9,2.28268776]
[1771244838859,12.04084489,1996.8,1994.9,0.001]
[1771244839016,19.090657,1996.6,1995.0,2.88405589]
[1771244839209,2.528074,1996.4,1994.9,0.001]
[1771244839410,1.56,1996.5,1995.0,2.88493747]
[1771244839713,0.49245289,1996.7,1994.9,0.001]
[1771244839924,0.49245289,1996.7,1994.9,2.28268776]
[1771244840122,0.49245289,1996.7,1995.0,2.88420166]
[1771244840326,1.25225405,1996.4,1994.9,0.001]
[1771244840538,1.25225405,1996.4,1995.0,2.88836491]
[1771244840808,1.25225405,1996.4,1994.9,0.001]
[1771244841009,1.2520659,1996.7,1995.1,2.28168776]
[1771244841223,0.49245289,1997.2,1995.2,5.17004759]
[1771244841224,5.00748288,1997.1,1995.2,5.17004759]
[1771244841539,5.00748288,1997.1,1995.3,3.51635983]
[1771244841735,5.00748288,1997.1,1995.3,5.79804759]
[1771244841931,5.00748288,1997.1,1995.4,2.88835983]
[1771244842107,0.49245289,1996.9,1995.5,2.88835983]
[1771244842314,1.25219133,1996.5,1995.3,0.628]
[1771244842540,1.25219133,1996.5,1995.2,0.903]
[1771244843039,1.559,1996.4,1995.2,0.903]
[1771244843342,8.86284771,1996.3,1995.2,0.903]
[1771244843712,8.86284771,1996.3,1994.9,0.001]
[1771244844443,1.25237952,1996.2,1995.0,2.89242564]
[1771244844642,1.25237952,1996.2,1994.9,0.001]
[1771244845221,1.557,1996.1,1994.9,0.001]
[1771244845628,1.25215894,1996.6,1995.0,2.89198918]
[1771244845818,1.25215894,1996.6,1995.1,5.17367694]
[1771244846016,1.25215894,1996.6,1995.2,2.89198918]
[1771244846339,0.49245289,1996.5,1994.9,0.001]
[1771244846641,0.49245289,1996.1,1994.9,0.001]
[1771244846844,1.558,1996.0,1994.9,0.001]
[1771244847313,2.05045289,1996.0,1994.9,0.001]
[1771244848248,1.558,1996.0,1994.9,0.001]
[1771244848543,2.81056201,1996.0,1994.9,0.001]
[1771244849263,3.3030149,1996.0,1995.0,0.001]
[1771244849456,15.667541,1995.9,1995.0,0.001]
[1771244849645,1.7450149,1996.0,1995.0,0.001]
[1771244849849,1.556,1995.9,1995.0,0.001]
[1771244850158,1.7450149,1996.0,1995.0,0.001]
[1771244850159,1.25256201,1996.0,1995.0,0.001]
[1771244850358,5.00995397,1996.1,1995.0,0.001]
[1771244850524,5.01002004,1996.2,1995.0,0.001]
[1771244850952,15.431381,1996.1,1995.0,0.001]
[1771244851139,3.50625,1996.0,1995.0,0.001]
[1771244851345,1.556,1995.9,1995.0,0.001]
[1771244851949,6.56602004,1996.2,1995.0,0.001]
[1771244856058,0.49245289,1996.1,1995.0,0.001]
[1771244856528,1.25250501,1996.0,1995.0,0.001]
[1771244856735,1.553,1995.9,1995.0,0.001]
[1771244857341,1.25250501,1996.0,1995.0,0.001]
[1771244857539,1.552,1995.9,1995.0,0.001]
[1771244858861,1.25263052,1995.8,1995.0,0.001]
[1771244859063,2.80461243,1995.9,1995.0,0.001]
[1771244859560,1.25225405,1996.4,1995.1,2.89874948]
[1771244859736,2.15491614,1997.0,1995.4,2.28168776]
[1771244859937,2.15491614,1997.0,1995.4,5.17900603]
[1771244860135,2.15491614,1997.0,1995.5,2.89731827]
[1771244860340,2.15491614,1997.0,1995.6,2.89731827]
[1771244860546,2.15491614,1997.0,1995.7,2.89731827]
[1771244860752,2.15491614,1997.0,1995.8,2.89731827]
[1771244861064,2.15491614,1997.0,1995.4,2.28168776]
[1771244861264,2.15491614,1997.0,1995.5,2.90023988]
[1771244861265,0.49245289,1996.8,1995.5,2.90023988]
[1771244861464,8.649496,1996.9,1995.1,0.903]
[1771244861465,17.377424,1996.6,1995.6,2.90023988]
[1771244861665,17.377424,1996.6,1995.2,2.28168776]
[1771244861666,1.547,1996.5,1995.2,2.28168776]
[1771244861962,1.547,1996.5,1995.3,2.90898307]
[1771244862168,2.03945289,1996.5,1995.1,0.903]
[1771244862366,0.1024,1996.9,1995.2,5.65900285]
[1771244862534,30.49245289,1996.6,1995.3,5.65900285]
[1771244862739,30.49245289,1996.6,1995.1,4.32783541]
[1771244862740,1.25231678,1996.3,1995.4,2.92108487]
[1771244862939,1.25212861,1996.6,1995.5,2.92108487]
[1771244863166,0.49245289,1997.4,1995.6,3.37695422]
[1771244863473,2.881607,1997.2,1995.7,5.20277263]
[1771244863639,2.881607,1997.2,1995.8,2.92108487]
[1771244863969,2.349136,1997.2,1995.9,2.92108487]
[1771244864166,2.14385289,1997.3,1996.0,2.92108487]
[1771244864465,4.153918,1997.1,1995.7,2.28168776]
[1771244864671,0.46968559,1997.1,1995.8,2.91384221]
[1771244864868,1.25187781,1997.0,1995.9,2.91384221]
[1771244865077,2.089301,1997.5,1996.0,2.91384221]
[1771244865371,1.2515018,1997.7,1996.4,2.28168776]
[1771244865571,1.2515018,1997.7,1996.5,2.91384221]
[1771244865743,1.2515018,1997.7,1996.6,2.91384221]
[1771244865945,1.2515018,1997.7,1996.4,2.28168776]
[1771244865946,2.15440722,1997.8,1996.7,2.91384221]
[1771244866273,1.25140722,1997.8,1996.8,2.91384221]
[1771244866472,1.25140722,1997.8,1996.5,2.28168776]
[1771244866675,1.25140722,1997.8,1996.6,2.90406841]
[1771244866922,1.72109281,1997.8,1996.2,2.28168776]
[1771244867078,4.416006,1997.6,1996.3,2.90584054]
[1771244867392,4.416006,1997.6,1996.1,0.619]
[1771244867572,4.416006,1997.6,1996.2,2.90551641]
[1771244867573,6.854466,1997.5,1996.2,2.90551641]
[1771244867772,3.436265,1997.3,1996.0,0.903]
[1771244867995,1.549,1997.2,1996.0,0.903]
[1771244868408,2.00389786,1997.2,1996.0,0.903]
[1771244868575,4.22989,1997.1,1995.5,0.619]
[1771244868923,16.35739086,1996.9,1995.6,2.90786043]
[1771244869199,5.00712389,1997.2,1995.7,2.90817542]
[1771244869410,1.251542,1997.6,1996.0,2.74319642]
[1771244869567,3.70347935,1997.7,1996.3,2.28168776]
[1771244869768,31.72138134,1997.6,1996.4,2.90817542]
[1771244869968,5.00575662,1997.9,1996.5,2.90455654]
[1771244869969,5.00538806,1997.9,1996.5,2.90455654]
[1771244870164,5.00538806,1997.9,1996.3,2.28168776]
[1771244870165,5.00538806,1997.9,1996.6,2.90455654]
[1771244870389,5.00538806,1997.9,1996.7,2.90072599]
[1771244870611,5.00538806,1997.9,1996.3,2.28168776]
[1771244870803,5.00538806,1997.9,1996.4,2.90052338]
[1771244870988,4.44737,1997.8,1996.5,2.90052338]
[1771244871189,5.00538806,1997.9,1996.6,2.90101815]
[1771244871490,5.00538806,1997.9,1996.2,2.74319642]
[1771244871696,0.003,1997.0,1996.3,5.17889603]
[1771244871907,0.003,1997.0,1996.4,2.89720827]
[1771244872080,0.003,1997.0,1996.5,2.89720827]
[1771244872276,0.003,1997.0,1996.2,2.74319642]
[1771244872527,0.003,1997.0,1995.9,3.18468776]
[1771244872805,0.003,1997.0,1996.0,2.89753494]
[1771244873006,0.003,1997.0,1996.1,2.89753494]
[1771244873185,0.003,1997.0,1996.2,2.89753494]
[1771244873389,0.003,1997.0,1996.0,0.46150866]
[1771244873705,0.003,1997.0,1996.0,2.89612829]
[1771244873877,0.003,1997.0,1996.1,0.46150866]
[1771244874078,0.003,1997.0,1996.2,2.89612829]
[1771244874280,0.003,1997.0,1995.9,0.903]
[1771244874504,0.003,1997.0,1996.0,2.89715442]
[1771244874721,0.003,1997.0,1996.1,2.89715442]
[1771244874917,0.003,1997.0,1996.2,2.89715442]
[1771244875206,0.003,1997.0,1996.3,2.89715442]
[1771244875382,0.003,1997.0,1996.4,2.89715442]
[1771244875717,0.003,1997.0,1996.0,2.74319642]
[1771244876016,0.003,1997.0,1996.1,2.89391582]
[1771244876321,0.003,1997.0,1996.0,2.74319642]
[1771244876322,0.003,1997.0,1996.2,2.89391582]
[1771244876489,0.003,1997.0,1996.0,0.46150866]
[1771244876809,0.003,1997.0,1996.1,2.89280851]
[1771244877014,0.003,1997.0,1995.9,0.903]
[1771244877206,0.003,1997.0,1996.0,2.89356671]
[1771244877511,0.003,1997.0,1995.9,0.903]
[1771244877718,9.30467734,1996.7,1995.5,2.31592956]
[1771244877916,0.003,1997.0,1995.6,2.28168776]
[1771244878119,4.348209,1996.9,1995.7,2.28168776]
[1771244878306,0.45689786,1997.0,1995.3,2.74319642]
[1771244878478,0.003,1997.0,1995.4,0.46150866]
[1771244878678,0.003,1997.0,1995.4,2.74319642]
[1771244878905,0.003,1997.0,1995.5,2.28168776]
[1771244879422,0.003,1997.0,1995.6,2.28168776]
[1771244879589,0.003,1997.0,1995.5,2.28168776]
[1771244880115,0.003,1997.0,1995.6,2.28168776]
[1771244880291,0.003,1997.0,1995.3,2.28168776]
[1771244880494,0.003,1997.0,1995.4,0.46150866]
[1771244880709,0.003,1997.0,1995.5,0.46150866]
[1771244880899,0.003,1997.0,1995.6,2.28168776]
[1771244880900,1.2519405,1996.9,1995.6,2.28168776]
[1771244881101,1.2519405,1996.9,1995.2,0.621]
[1771244881102,1.2519405,1996.9,1995.3,2.28168776]
[1771244881298,0.45389786,1996.7,1995.3,2.28168776]
[1771244881817,0.45389786,1996.3,1995.3,2.28168776]
[1771244882527,23.40445334,1996.2,1995.1,0.001]
[1771244882716,0.45389786,1996.2,1995.3,2.28168776]
[1771244883023,8.85077948,1996.6,1995.1,0.001]
[1771244883024,1.25231678,1996.3,1995.1,0.001]
[1771244883229,1.70621464,1996.3,1995.3,2.28168776]
[1771244883826,1.25231678,1996.3,1995.3,2.28168776]
[1771244884695,1.2520659,1996.7,1995.3,2.28048776]
[1771244885113,1.70596376,1996.7,1995.3,2.28048776]
[1771244885296,3.111863,1996.6,1995.3,2.28048776]
[1771244885662,0.45389786,1996.6,1995.3,2.28048776]
[1771244886041,9.87346444,1996.4,1995.3,2.28048776]
[1771244886243,0.45389786,1996.4,1995.1,0.001]
[1771244886531,1.2520659,1996.7,1995.1,0.46250866]
[1771244886691,9.41956658,1996.5,1995.1,0.001]
[1771244886917,1.25225405,1996.4,1995.1,0.001]
[1771244887113,1.70615191,1996.4,1995.1,0.001]
[1771244887413,1.25225405,1996.4,1995.1,0.001]
[1771244889019,9.41956658,1996.1,1995.1,0.001]
[1771244889509,9.41956658,1996.1,1995.4,0.001]
[1771244889820,9.41956658,1996.1,1995.1,0.001]
[1771244890012,9.87346444,1996.1,1994.9,0.001]
[1771244891120,1.25250501,1996.0,1994.9,0.001]
[1771244891946,0.45389786,1995.9,1994.6,0.619]
[1771244892925,9.41956658,1995.8,1994.6,0.619]
[1771244893095,5.01015012,1996.0,1994.6,0.619]
[1771244893812,5.01015012,1996.0,1994.1,0.903]
[1771244893813,9.41956658,1995.1,1994.1,0.903]
[1771244894234,1.537,1995.4,1994.1,0.903]
[1771244894540,15.9677167,1996.0,1994.2,0.49705031]
[1771244895112,9.41956658,1995.6,1994.2,0.49705031]
[1771244895322,14.4297167,1996.0,1994.2,0.49705031]
[1771244895607,14.88715707,1996.0,1994.2,0.49705031]
[1771244895953,2.085751,1995.9,1994.2,0.49705031]
[1771244896158,14.88715707,1996.0,1994.2,0.49705031]
[1771244896313,2.904324,1995.9,1994.2,0.49705031]
[1771244896660,0.45744037,1995.9,1994.2,0.49705031]
[1771244896966,9.41956658,1995.6,1994.1,1.40005031]
[1771244897256,1.25281884,1995.5,1994.1,1.40005031]
[1771244899044,1.25281884,1995.5,1994.1,0.903]
[1771244899045,0.45744037,1995.4,1994.1,0.903]
[1771244899249,1.99444037,1995.4,1994.1,0.903]
[1771244899838,1.537,1995.4,1994.1,1.40005031]
[1771244900023,1.537,1995.4,1994.1,0.903]
[1771244901240,1.25294441,1995.3,1994.1,0.903]
[1771244901822,1.25294441,1995.3,1994.1,1.40005031]
[1771244902222,1.25294441,1995.3,1994.2,0.001]
[1771244905048,5.01177767,1995.4,1994.2,0.001]
[1771244905656,1.25281884,1995.5,1994.2,0.49805031]
[1771244905838,1.533,1995.7,1994.2,0.49805031]
[1771244906034,5.01002519,1996.0,1994.2,0.49805031]
[1771244906435,0.45744037,1995.9,1994.2,0.49805031]
[1771244906959,13.87197521,1996.0,1994.2,0.49805031]
[1771244907333,1.25250501,1996.0,1994.2,0.49805031]
[1771244907755,1.25250501,1996.0,1994.3,0.49705031]
[1771244907962,1.25250501,1996.0,1994.5,0.49705031]
[1771244908364,2.15548369,1996.1,1994.5,0.49705031]
[1771244909372,2.15548369,1996.1,1994.6,0.49705031]
[1771244911438,2.15544823,1996.1,1994.6,0.49705031]
[1771244912167,0.903,1996.1,1994.6,0.49705031]
[1771244912355,2.15548836,1996.1,1994.6,0.49705031]
[1771244913583,2.61292873,1996.1,1994.6,0.49705031]
[1771244913781,2.61292873,1996.1,1994.4,0.608]
[1771244913782,0.45744037,1995.9,1994.4,0.608]
[1771244914265,6.39069437,1996.3,1994.6,0.49705031]
[1771244914266,1.25231852,1996.3,1994.6,0.49705031]
[1771244914577,0.45854037,1996.5,1994.8,0.49705031]
[1771244914578,0.0011,1996.5,1994.8,0.49705031]
[1771244914746,1.25329281,1996.5,1994.9,0.49705031]
[1771244914947,1.25329281,1996.5,1995.1,0.49705031]
[1771244915257,1.71073318,1996.5,1995.1,0.49705031]
[1771244915579,0.0011,1996.5,1995.1,0.49705031]
[1771244915802,0.0011,1996.6,1995.6,3.98454425]
[1771244915941,0.0011,1996.6,1995.7,4.59154425]
[1771244916299,1.25326489,1996.6,1995.7,0.607]
[1771244916457,1.71070526,1996.6,1995.0,0.903]
[1771244916773,9.31939039,1996.4,1995.0,0.903]
[1771244917348,1.25231678,1996.3,1995.0,0.903]
[1771244917748,1.70975715,1996.3,1995.0,0.903]
[1771244917979,1.25231678,1996.3,1995.0,0.903]
[1771244918165,1.70975715,1996.3,1995.0,0.903]